Workbook

Sheet Приложение №2
A1: "СОГЛАСОВАНО" | AF1: "УТВЕРЖДАЮ" | AN1: Приложение №2
A2: Директор РЦФКиЮС МДМиС РТ | AF2: Начальник УФиС Исполнительного комитета
A4: ____________________ /М.Т.Рахматуллина/ | AF4: _____________________/Н.Ш. Безрукова/
A7: ПЛАН КОМПЛЕКТОВАНИЯ
A8: Муниципального бюджетного учреждения дополнительного образования города Набережные Челны "Детско-юношеской спортивной школы "Челны"
A9: на 2017 - 2018 учебный год
A11: № | B11: Ф.И.О. | D11: Образование | E11: Штат/совмес. | F11: СО | I11: НП | R11: Т (СС) | AG11: ССМ | AM11: ВСМ | AP11: Всего групп | AQ11: Всего учащ. | AR11: Кол-во час/нед | AS11: Сумма % по нормативу
J12: 1 г.о. | L12: 2 г.о. | O12: 3 г.о. | R12: 1 г.о. | U12: 2 г.о. | X12: 3 г.о. | AA12: 4 г.о. | AD12: 5 г.о. | AG12: 1 г.о. | AJ12: 2 г.о.
F13: групп | G13: учащихся | H13: часы | I13: групп | J13: учащихся | K13: часы | L13: групп | M13: учащихся | N13: часы | O13: групп | P13: учащихся | Q13: часы | R13: групп | S13: учащихся | T13: часы | U13: групп | V13: учащихся | W13: часы | X13: групп | Y13: учащихся | Z13: часы | AA13: групп | AB13: учащихся | AC13: часы | AD13: групп | AE13: учащихся | AF13: часы | AG13: групп | AH13: учащихся | AI13: часы | AJ13: групп | AK13: учащихся | AL13: часы | AM13: групп | AN13: учащихся | AO13: часы
A14: ОТДЕЛЕНИЕ ХОККЕЯ
F15: 1.5% | I15: 2.4% | L15: 3.6% | O15: 3.6% | R15: 5.6% | U15: 8.3% | X15: 10.0% | AA15: 10.0% | AD15: 11.1% | AG15: 17.0% | AJ15: 20.0% | AM15: 25.0%
A16: 1 | B16: Девятовский Александр Николаевич | C16: Улепнов Эдуард Анатольевич | D16: В | E16: Ш | AD16: 2 | AE16: 20 | AF16: 36 | AP16: =F16+I16+L16+R16+U16+X16+AA16+AD16+AG16+AJ16+AM16 -> 2 | AQ16: 20 | AR16: 36 | AS16: =G16*F15+J16*I15+M16*L15+S16*R15+V16*U15+Y16*X15+AB16*AA15+AE16*AD15+AH16*AG15 -> 2.220
A17: 2 | B17: Овчинников Вячеслав Федорович | D17: В | E17: Ш | AA17: 1 | AB17: 10 | AC17: 18 | AP17: =F17+I17+L17+O17+R17+U17+X17+AA17+AD17+AG17 -> 1 | AQ17: =G17+J17+M17+P17+S17+V17+Y17+AB17+AE17+AH17 -> 10 | AR17: =H17+K17+N17+Q17+T17+W17+Z17+AC17+AF17+AI17 -> 18 | AS17: =G17*F15+J17*I15+M17*L15+P17*O15+S17*R15+V17*U15+Y17*X15+AB17*AA15+AE17*AD15+AH17*AG15+AK17*AJ15+AN17*AM15 -> 1.000
B18: Овчинников Вячеслав Федорович | C18: Девятовский Александр Николаевич | D18: В | E18: Ш | X18: 1 | Y18: 10 | Z18: 18 | AP18: =F18+I18+L18+R18+U18+X18+AA18+AD18+AG18+AJ18+AM18 -> 1 | AQ18: =G18+J18+M18+S18+V18+Y18+AB18+AE18+AH18+AK18+AN18 -> 10 | AR18: =H18+K18+N18+T18+W18+Z18+AC18+AF18+AI18+AL18+AO18 -> 18 | AS18: =G18*F15+J18*I15+M18*L15+P18*O15+S18*R15+V18*U15+Y18*X15+AB18*AA15+AE18*AD15+AH18*AG15 -> 1.000
A19: 3 | B19: Бубукин Владимир Иванович | D19: В | E19: Ш | AA19: 2 | AB19: 20 | AC19: 36 | AP19: =F19+I19+L19+O19+R19+U19+X19+AA19+AD19+AG19 -> 2 | AQ19: =G19+J19+M19+P19+S19+V19+Y19+AB19+AE19+AH19 -> 20 | AR19: =H19+K19+N19+Q19+T19+W19+Z19+AC19+AF19+AI19 -> 36 | AS19: =G19*F15+J19*I15+M19*L15+P19*O15+S19*R15+V19*U15+Y19*X15+AB19*AA15+AE19*AD15+AH19*AG15 -> 2.000
A20: 4 | B20: Миннеханов Ильдар Анасович | D20: В | E20: Ш | AA20: 2 | AB20: 20 | AC20: 36 | AP20: 2 | AQ20: 20 | AR20: 36 | AS20: =G20*F15+J20*I15+M20*L15+P20*O15+S20*R15+V20*U15+Y20*X15+AB20*AA15+AE20*AD15+AH20*AG15 -> 2.000
A21: 5 | B21: Ханов Рустам Дамирович | C21: Миннеханов Ильдар Анасович | D21: В | E21: Ш | X21: 2 | Y21: 20 | Z21: 36 | AP21: =F21+I21+L21+R21+U21+X21+AA21+AD21+AG21+AJ21+AM21 -> 2 | AQ21: =G21+J21+M21+S21+V21+Y21+AB21+AE21+AH21+AK21+AN21 -> 20 | AR21: =H21+K21+N21+T21+W21+Z21+AC21+AF21+AI21+AL21+AO21 -> 36 | AS21: =G21*F15+J21*I15+M21*L15+P21*O15+S21*R15+V21*U15+Y21*X15+AB21*AA15+AE21*AD15+AH21*AG15 -> 2.000
A22: 6 | B22: Сергейчев Виктор Николаевич | C22: Бикмухамедов Шаукат Газизович | D22: В | E22: Ш | X22: 2 | Y22: 20 | Z22: 36 | AP22: 2 | AQ22: 20 | AR22: 36 | AS22: =G22*F15+J22*I15+M22*L15+P22*O15+S22*R15+V22*U15+Y22*X15+AB22*AA15+AE22*AD15+AH22*AG15+AK22*AJ15 -> 2.000
A23: 7 | B23: Аббазов Ильнар Рафикович | D23: В | E23: Ш | U23: 1 | V23: 10 | W23: 15 | AP23: =F23+I23+L23+O23+R23+U23+X23+AA23+AD23+AG23 -> 1 | AQ23: =G23+J23+M23+P23+S23+V23+Y23+AB23+AE23+AH23 -> 10 | AR23: =H23+K23+N23+Q23+T23+W23+Z23+AC23+AF23+AI23 -> 15 | AS23: =G23*F15+J23*I15+M23*L15+P23*O15+S23*R15+V23*U15+Y23*X15+AB23*AA15+AE23*AD15+AH23*AG15+AK23*AJ15+AN23*AM15 -> 0.830
A24: 8 | B24: Самигуллин Рафаэль Раилович | C24: Сергейчев Виктор Николаевич | D24: В | E24: Ш | R24: 1 | S24: 12 | T24: 12 | U24: 2 | V24: 20 | W24: 24 | AP24: 3 | AQ24: 32 | AR24: 36 | AS24: =G24*F15+J24*I15+M24*L15+P24*O15+S24*R15+V24*U15+Y24*X15+AB24*AA15+AE24*AD15+AH24*AG15 -> 2.332
A25: 9 | B25: Симонов Николай Александрович | C25: Самигуллин Рафаэль Раилович | D25: В | E25: Ш | O25: 3 | P25: 42 | Q25: 27 | AP25: =F25+I25+L25+O25+R25+U25+X25+AA25+AD25+AG25 -> 3 | AQ25: =G25+J25+M25+P25+S25+V25+Y25 -> 42 | AR25: =H25+K25+N25+Q25+T25+W25+Z25 -> 27 | AS25: =G25*F15+J25*I15+M25*L15+P25*O15+S25*R15+V25*U15+Y25*X15+AB25*AA15+AE25*AD15+AH25*AG15 -> 1.512
A26: 10 | B26: Соколов Евгений Иванович | D26: В | E26: Ш | I26: 1 | J26: 14 | K26: 6 | L26: 1 | M26: 14 | N26: 9 | AP26: =F26+I26+L26+O26+R26+U26+X26+AA26+AD26+AG26 -> 2 | AQ26: =G26+J26+M26+P26+S26+V26+Y26+AB26+AE26+AH26 -> 28 | AR26: =H26+K26+N26+Q26+T26+W26+Z26+AC26+AF26+AI26+AL26 -> 15 | AS26: =G26*F15+J26*I15+M26*L15+P26*O15+S26*R15+V26*U15+Y26*X15+AB26*AA15+AE26*AD15+AH26*AG15 -> 0.840
A27: 11 | B27: Пантелеев Виталий Андреевич | D27: В | E27: Ш | I27: 4 | J27: 56 | K27: 24 | AP27: =F27+I27+L27+O27+R27+U27+X27+AA27+AD27+AG27+AJ27+AM27 -> 4 | AQ27: =G27+J27+M27+P27+S27+V27+Y27+AB27+AE27+AH27+AK27+AN27 -> 56 | AR27: =H27+K27+N27+Q27+T27+W27+Z27+AC27+AF27+AI27+AL27+AO27 -> 24 | AS27: =G27*F15+J27*I15+M27*L15+P27*O15+S27*R15+V27*U15+Y27*X15+AB27*AA15+AE27*AD15*AH27*AG15 -> 1.344
A28: 12 | B28: Газимов Ильназ Рашитович | D28: В | E28: Ш | I28: 5 | J28: 67 | K28: 30 | AP28: =F28+I28+L28+O28+R28+U28+X28+AA28+AD28+AG28 -> 5 | AQ28: =G28+J28+M28+P28+S28+V28+Y28+AB28+AE28+AH28 -> 67 | AR28: =H28+K28+N28+Q28+T28+W28+Z28+AC28++AF28+AI28 -> 30 | AS28: =G28*F15+J28*I15+M28*L15+P28*O15+S28*R15+V28*U15+Y28*X15+AB28*AA15+AE28*AD15+AH28*AG15+AK28*AJ15+AN28*AM15 -> 1.608
A29: ИТОГО по отделению: | D29: 12/0 | E29: 12/0 | F29: =SUM(F16:F28) -> 0 | G29: 0 | H29: 0 | I29: 10 | J29: 137 | K29: 60 | L29: 1 | M29: 14 | N29: 9 | O29: 3 | P29: 42 | Q29: 27 | R29: 1 | S29: 12 | T29: 12 | U29: 3 | V29: 30 | W29: 39 | X29: 5 | Y29: 50 | Z29: 90 | AA29: 5 | AB29: 50 | AC29: 90 | AD29: 2 | AE29: 20 | AF29: 36 | AG29: 0 | AH29: 0 | AI29: 0 | AJ29: 0 | AK29: 0 | AL29: 0 | AM29: 0 | AN29: 0 | AO29: 0 | AP29: =SUM(AP16:AP28) -> 30 | AQ29: =SUM(AQ16:AQ28) -> 355 | AR29: =SUM(AR16:AR28) -> 363 | AS29: =SUM(AS16:AS28) -> 20.686
A30: из них по программе спортивной подготовки | F30: 0 | G30: 0 | H30: 0 | I30: 0 | J30: 0 | K30: 0 | L30: 0 | M30: 0 | N30: 0 | O30: 0 | P30: 0 | Q30: 0 | R30: 0 | S30: 0 | T30: 0 | U30: 0 | V30: 0 | W30: 0 | X30: 0 | Y30: 0 | Z30: 0 | AA30: =AA16+AA17+AA18+AA19+AA20 -> 5 | AB30: 50 | AC30: 90 | AD30: 2 | AE30: 20 | AF30: 36 | AG30: 0 | AH30: 0 | AI30: 0 | AJ30: 0 | AK30: 0 | AL30: 0 | AM30: 0 | AN30: 0 | AO30: 0 | AP30: =AP16+AP17+AP19+AP20 -> 7 | AQ30: =AQ16+AQ17+AQ19+AQ20 -> 70 | AR30: =AR16+AR17+AR19+AR20 -> 126 | AS30: =AS16+AS17+AS19+AS20 -> 7.220
A31: ОТДЕЛЕНИЕ ФИГУРНОГО КАТАНИЯ НА КОНЬКАХ
F32: 1.1% | I32: 2.8% | L32: 4.4% | O32: 4.4% | R32: 11.1% | U32: 16.7% | X32: 16.7% | AA32: 18.5% | AD32: 15.3% | AG32: 20.0% | AJ32: 30.0% | AM32: 40.0%
A33: 13 | B33: Ахметзянова Наталья Николаевна | C33: Ахметзянова Наталья Николаевна | D33: В | E33: Ш | AD33: 1 | AE33: 8 | AF33: 18 | AP33: =F33+I33+L33+O33+R33+U33+X33+AA33+AD33+AG33 -> 1 | AQ33: 8 | AR33: 18 | AS33: =G33*F32+J33*I32+M33*L32+P33*O32+S33*R32+V33*U32+Y33*X32+AB33*AA32+AE33*AD32+AH33*AG32 -> 1.224
B34: Ахметзянова Наталья Николаевна | D34: В | E34: Ш | X34: 1 | Y34: 6 | Z34: 18 | AP34: 1 | AQ34: 6 | AR34: 18 | AS34: =G34*F32+J34*I32+M34*L32+P34*O32+S34*R32+V34*U32+Y34*X32+AB34*AA32+AE34*AD32+AH34*AG32 -> 1.002
A35: 14 | B35: Махранова Марина Александровна | D35: В | E35: Ш | L35: 1 | M35: 15 | N35: 10 | O35: 1 | P35: 15 | Q35: 12 | R35: 1 | S35: 8 | T35: 14 | AP35: =F35+I35+L35+O35+R35+U35+X35+AA35+AD35+AG35 -> 3 | AQ35: =G35+J35+M35+P35+S35+V35+Y35+AB35+AE35+AH35 -> 38 | AR35: =H35+K35+N35+Q35+T35+W35+Z35+AC35+AF35+AI35 -> 36 | AS35: =G35*F32+J35*I32+M35*L32+P35*O32+S35*R32+V35*U32+Y35*X32+AB35*AA32+AE35*AD32+AH35*AG32 -> 2.208
A36: 15 | B36: Шашлакова Наталья Владимировна | C36: Ахметзянова Наталья Николаевна | D36: В | E36: Ш | I36: 1 | J36: 20 | K36: 10 | U36: 1 | V36: 6 | W36: 18 | AP36: =F36+I36+L36+R36+U36+X36+AA36+AD36+AG36+AJ36+AM36 -> 2 | AQ36: 26 | AR36: 28 | AS36: =G36*F32+J36*I32+M36*L32+P36*O32+S36*R32+V36*U32+Y36*X32+AB36*AA32+AE36*AD32+AH36*AG32 -> 1.562
A37: 16 | B37: Габделхакова Диляра Фаилевна | D37: В | E37: Ш | I37: 1 | J37: 20 | K37: 10 | AP37: =F37+I37+L37+O37+R37+U37+X37+AA37+AD37+AG37 -> 1 | AQ37: =G37+J37+M37+P37+S37+V37+Y37+AB37+AE37+AH37 -> 20 | AR37: =H37+K37+N37+Q37+T37+W37+Z37+AC37+AF37+AI37 -> 10 | AS37: =G37*F32+J37*I32+M37*L32+P37*O32+S37*R32+V37*U32+Y37*X32+AB37*AA32+AE37*AD32+AH37*AG32+AK37*AJ32+AN37*AM32 -> 0.560
A38: 17 | B38: Молчанюк Ольга Юрьевна | D38: В | E38: Ш | N38: 2 | Q38: 2 | T38: 5 | Z38: 6 | AP38: =F38+I38+L38+O38+R38+U38+X38+AA38+AD38+AG38 -> 0 | AQ38: =G38+J38+M38+P38+S38+V38+Y38+AB38+AE38+AH38+AK38 -> 0 | AR38: 15 | AS38: 0.833
B39: Молчанюк Ольга Юрьевна | D39: В | E39: Ш | AF39: 6 | AP39: 0 | AQ39: 0 | AR39: =H39+K39+N39+Q39+T39+W39+Z39+AC39+AF39+AI39 -> 6 | AS39: 0.333
A40: 18 | B40: Новикова Юлия Викторовна | C40: Варенова Татьяна Михайловна (постановка программы на льду) | D40: В | E40: Ш | W40: 8 | AP40: 0 | AQ40: 0 | AR40: 8 | AS40: 0.444
A41: ИТОГО по отделению: | D41: 6/0 | E41: 6/0 | F41: =SUM(F33:F40) -> 0 | G41: 0 | H41: 0 | I41: 2 | J41: 40 | K41: 20 | L41: 1 | M41: 15 | N41: 12 | O41: 1 | P41: 15 | Q41: 14 | R41: 1 | S41: 8 | T41: 19 | U41: 1 | V41: 6 | W41: 26 | X41: 1 | Y41: 6 | Z41: 24 | AA41: 0 | AB41: 0 | AC41: 0 | AD41: 1 | AE41: 8 | AF41: 24 | AG41: 0 | AH41: 0 | AI41: 0 | AJ41: 0 | AK41: 0 | AL41: 0 | AM41: 0 | AN41: 0 | AO41: 0 | AP41: =SUM(AP33:AP40) -> 8 | AQ41: =SUM(AQ33:AQ40) -> 98 | AR41: =SUM(AR33:AR40) -> 139 | AS41: =SUM(AS33:AS40) -> 8.166
A42: из них по программе спортивной подготовки | D42: 2/0 | E42: 2/0 | F42: 0 | G42: 0 | H42: 0 | I42: 0 | J42: 0 | K42: 0 | L42: 0 | M42: 0 | N42: 0 | O42: 0 | P42: 0 | Q42: 0 | R42: 0 | S42: 0 | T42: 0 | U42: 0 | V42: 0 | W42: 0 | X42: =X33+X39 -> 0 | Y42: =Y33+Y39 -> 0 | Z42: =Z33+Z39 -> 0 | AA42: 0 | AB42: 0 | AC42: 0 | AD42: =AD33+AD39 -> 1 | AE42: =AE33+AE39 -> 8 | AF42: =AF33+AF39 -> 24 | AG42: 0 | AH42: 0 | AI42: 0 | AJ42: 0 | AK42: 0 | AL42: 0 | AM42: 0 | AN42: 0 | AO42: 0 | AP42: =AP33+AP39 -> 1 | AQ42: =AQ33+AQ39 -> 8 | AR42: =AR33+AR39 -> 24 | AS42: =AS33+AS39 -> 1.557
A43: ВСЕГО по организации | D43: 18/0 | E43: 18/0 | F43: =F29+F41 -> 0 | G43: 0 | H43: 0 | I43: 12 | J43: 177 | K43: 80 | L43: 2 | M43: 29 | N43: 21 | O43: 4 | P43: 57 | Q43: 41 | R43: 2 | S43: 20 | T43: 31 | U43: 4 | V43: 36 | W43: 65 | X43: 6 | Y43: 56 | Z43: 114 | AA43: 5 | AB43: 50 | AC43: 90 | AD43: 3 | AE43: 28 | AF43: 60 | AG43: 0 | AH43: 0 | AI43: 0 | AJ43: 0 | AK43: 0 | AL43: 0 | AM43: 0 | AN43: 0 | AO43: 0 | AP43: 38 | AQ43: 453 | AR43: 502 | AS43: 28.852
A44: из них по программе спортивной подготовки | D44: 6/0 | E44: 6/0 | F44: =F30+F42 -> 0 | G44: 0 | H44: 0 | I44: 0 | J44: 0 | K44: 0 | L44: 0 | M44: 0 | N44: 0 | O44: 0 | P44: 0 | Q44: 0 | R44: 0 | S44: 0 | T44: 0 | U44: 0 | V44: 0 | W44: 0 | X44: 0 | Y44: 0 | Z44: 0 | AA44: 5 | AB44: 50 | AC44: 90 | AD44: 3 | AE44: 28 | AF44: 60 | AG44: 0 | AH44: 0 | AI44: 0 | AJ44: 0 | AK44: 0 | AL44: 0 | AM44: 0 | AN44: 0 | AO44: 0 | AP44: 8 | AQ44: 78 | AR44: 150 | AS44: 8.777
D46: Директор организации | L46: ________________ /Р.Т. Файзрахманов/
M47: подпись | P47: расшифровка подписи
D48: Ответственный за составление | L48: ________________ /В.Е. Боброва/
M49: подпись | P49: расшифровка подписи

Sheet ОБРАЗЕЦ
A1: "СОГЛАСОВАНО" | AC1: "УТВЕРЖДАЮ" | AK1: Приложение №2
A2: Директор РЦФКиЮС МДМиС РТ | AC2: Учредитель (Должность, Ф.И.О.)
A4: ____________________ /М.Т.Рахматуллина/ | AC4: __________________ /_______________________________ /
AC5: подпись | AI5: расшифровка подписи
A7: ПЛАН КОМПЛЕКТОВАНИЯ
A8: (полное наименование РСДЮСШОР, СДЮШОР, ДЮСШ)
A9: на 2014 - 2015 учебный год
A11: № | B11: Ф.И.О. | D11: Образование | E11: Штат/совмес. | F11: СО | I11: НП | O11: Т (СС) | AD11: ССМ | AJ11: ВСМ | AM11: Всего групп | AN11: Всего учащ. | AO11: Кол-во час/нед | AP11: Сумма % по нормативу
J12: 1 г.о. | L12: 2 г.о. | O12: 1 г.о. | R12: 2 г.о. | U12: 3 г.о. | X12: 4 г.о. | AA12: 5 г.о. | AD12: 1 г.о. | AG12: 2 г.о.
F13: групп | G13: учащихся | H13: часы | I13: групп | J13: учащихся | K13: часы | L13: групп | M13: учащихся | N13: часы | O13: групп | P13: учащихся | Q13: часы | R13: групп | S13: учащихся | T13: часы | U13: групп | V13: учащихся | W13: часы | X13: групп | Y13: учащихся | Z13: часы | AA13: групп | AB13: учащихся | AC13: часы | AD13: групп | AE13: учащихся | AF13: часы | AG13: групп | AH13: учащихся | AI13: часы | AJ13: групп | AK13: учащихся | AL13: часы
A14: ОТДЕЛЕНИЕ ДЗЮДО
F15: 1.5% | I15: 2.2% | L15: 3.6% | O15: 4.6% | R15: 5.6% | U15: 7.8% | X15: 8.9% | AA15: 10.0% | AD15: 17.0% | AG15: 23.0% | AJ15: %
A16: 1 | D16: В | E16: Ш | L16: 2 | M16: 40 | N16: 18 | U16: 1 | V16: 12 | W16: 14 | AM16: 3 | AN16: 52 | AO16: 32 | AP16: 2.38
A17: 2 | D17: В | E17: Ш | I17: 2 | J17: 40 | K17: 12 | L17: 1 | M17: 20 | N17: 9 | AM17: 3 | AN17: 60 | AO17: 21 | AP17: 1.60
A18: 3 | D18: В | E18: Ш | F18: 1 | G18: 25 | H18: 4 | O18: 1 | P18: 18 | Q18: 10 | R18: 1 | S18: 15 | T18: 12 | AM18: 3 | AN18: 58 | AO18: 26 | AP18: 2.04
A19: ИТОГО по отделению: | E19: 3/0 | F19: 1 | G19: 25 | H19: 4 | I19: 2 | J19: 40 | K19: 12 | L19: 3 | M19: 60 | N19: 27 | O19: 1 | P19: 18 | Q19: 10 | R19: 1 | S19: 15 | T19: 12 | U19: 1 | V19: 12 | W19: 14 | X19: 0 | Y19: 0 | Z19: 0 | AA19: 0 | AB19: 0 | AC19: 0 | AD19: 0 | AE19: 0 | AF19: 0 | AG19: 0 | AH19: 0 | AI19: 0 | AJ19: 0 | AK19: 0 | AL19: 0 | AM19: 9 | AN19: 170 | AO19: 79 | AP19: 6.02
A20: ОТДЕЛЕНИЕ ХОККЕЯ С ШАЙБОЙ
F21: 1.5% | I21: 2.4% | L21: 3.6% | O21: 5.6% | R21: 8.3% | U21: 10.0% | X21: 10.0% | AA21: 11.0% | AD21: 17.0% | AG21: 20.0% | AJ21: %
A22: 4 | D22: В | E22: Ш | O22: 3 | P22: 45 | Q22: 36 | AM22: 3 | AN22: 45 | AO22: 36 | AP22: 2.52
A23: 5 | D23: В | E23: Ш | U23: 2 | V23: 36 | W23: 36 | AM23: 2 | AN23: 36 | AO23: 36 | AP23: 3.60
A24: 6 | D24: В | E24: Ш | AA24: 2 | AB24: 30 | AC24: 36 | AM24: 2 | AN24: 30 | AO24: 36 | AP24: 3.30
A25: 7 | D25: В | E25: Ш | AA25: 2 | AB25: 30 | AC25: 36 | AM25: 2 | AN25: 30 | AO25: 36 | AP25: 3.30
A26: 8 | D26: Н/В | E26: С | L26: 1 | M26: 15 | N26: 9 | AM26: 1 | AN26: 15 | AO26: 9 | AP26: 0.54
A27: 9 | D27: В | E27: Ш | AA27: 2 | AB27: 30 | AC27: 36 | AM27: 2 | AN27: 30 | AO27: 36 | AP27: 3.30
A28: 10 | D28: В | E28: Ш | X28: 2 | Y28: 36 | Z28: 36 | AM28: 2 | AN28: 36 | AO28: 36 | AP28: 3.60
A29: 11 | D29: Ср | E29: Ш | R29: 2 | S29: 36 | T29: 30 | AM29: 2 | AN29: 36 | AO29: 30 | AP29: 2.99
A30: ИТОГО по отделению: | E30: 7/1 | F30: 0 | G30: 0 | H30: 0 | I30: 0 | J30: 0 | K30: 0 | L30: 1 | M30: 15 | N30: 9 | O30: 3 | P30: 45 | Q30: 36 | R30: 2 | S30: 36 | T30: 30 | U30: 2 | V30: 36 | W30: 36 | X30: 2 | Y30: 36 | Z30: 36 | AA30: 6 | AB30: 90 | AC30: 108 | AD30: 0 | AE30: 0 | AF30: 0 | AG30: 0 | AH30: 0 | AI30: 0 | AJ30: 0 | AK30: 0 | AL30: 0 | AM30: 16 | AN30: 258 | AO30: 255 | AP30: 23,15
A31: ОТДЕЛЕНИЕ ФИГУРНОГО КАТАНИЯ
F32: 1.1% | I32: 2.8% | L32: 4.4% | O32: 11.1% | R32: 16.7% | U32: 16.7% | X32: 18.5% | AA32: 0.0% | AD32: 20.0% | AG32: 30.0% | AJ32: %
A33: 12 | D33: В | E33: Ш | I33: 1 | J33: 20 | K33: 10 | L33: 2 | M33: 38 | N33: 24 | AM33: 3 | AN33: 58 | AO33: 34 | AP33: 2.23
A34: 13 | D34: В | E34: Ш | I34: 1 | J34: 20 | K34: 10 | L34: 2 | M34: 38 | N34: 24 | AM34: 3 | AN34: 58 | AO34: 34 | AP34: 2.23
A35: 14 | D35: Н/В | E35: С | I35: 1 | J35: 20 | K35: 10 | AM35: 1 | AN35: 20 | AO35: 10 | AP35: 0.56
A36: ИТОГО по отделению | E36: 2/1 | F36: 0 | G36: 0 | H36: 0 | I36: 3 | J36: 60 | K36: 30 | L36: 4 | M36: 76 | N36: 48 | O36: 0 | P36: 0 | Q36: 0 | R36: 0 | S36: 0 | T36: 0 | U36: 0 | V36: 0 | W36: 0 | X36: 0 | Y36: 0 | Z36: 0 | AA36: 0 | AB36: 0 | AC36: 0 | AD36: 0 | AE36: 0 | AF36: 0 | AG36: 0 | AH36: 0 | AI36: 0 | AJ36: 0 | AK36: 0 | AL36: 0 | AM36: 7 | AN36: 136 | AO36: 78 | AP36: 5.02
A37: ВСЕГО по организации | E37: 12/2 | F37: 1 | G37: 25 | H37: 4 | I37: 5 | J37: 100 | K37: 42 | L37: 8 | M37: 151 | N37: 84 | O37: 4 | P37: 63 | Q37: 46 | R37: 3 | S37: 51 | T37: 42 | U37: 3 | V37: 48 | W37: 50 | X37: 2 | Y37: 36 | Z37: 36 | AA37: 6 | AB37: 90 | AC37: 108 | AD37: 0 | AE37: 0 | AF37: 0 | AG37: 0 | AH37: 0 | AI37: 0 | AJ37: 0 | AK37: 0 | AL37: 0 | AM37: 32 | AN37: 564 | AO37: 412 | AP37: 34.19
AO38: 22.9
D39: Директор организации | L39: ________________ /_________________________ / | AB39: Количество тренерских ставок по штатному расписанию _________
M40: подпись | O40: расшифровка подписи
D41: Ответственный за составление | L41: ________________ /_________________________ /
M42: подпись | O42: расшифровка подписи
